Cogmind - Beta 14 @@@ ROGUE MODE // 2024.11.18 @ 13:04:58 Player: Fangrelle Result: Destroyed by Y-45 Defender with Beam Rifle Performance ------------- Evolutions (2) 1000 Regions Visited (6) 1200 Robots Destroyed (88) 440 Value Destroyed (2661) 2661 Prototype IDs (27) 540 Alien Tech Used (0) 0 Bonus (836) 836 TOTAL SCORE: 6677 Bonus ------- High Alert Combat Kills 241 Follower Combat Kills 95 Entered Garrisons 200 Aligned with FarCom 300 Cogmind --------- Core Integrity 0/550 Matter 7/300 Energy 100/100 System Corruption 1% Temperature Cool (27) Movement Walking (260) Ox2 Location -8/Garrison Parts ------- > --- POWER (1) -------- (None) > --- PROPULSION (2) --- Improved Carbon-fiber Leg > --- UTILITY (6) ------ Improved Heat Sink High-capacity Storage Unit Armor Integrity Analyzer > --- WEAPON (2) ------- Axe > --- INVENTORY (20) --- Improved Carbon-fiber Leg Cesium-ion Thruster Improved VTOL Module Improved VTOL Module Improved VTOL Module Improved VTOL Module Advanced Weight Redist. System Melee Analysis Suite Melee Analysis Suite Armor Integrity Analyzer Armor Integrity Analyzer Improved Utility Shielding YOLO Cannon Minigun Minigun Assault Cannon Assault Cannon Grenade Launcher Peak State ------------ > --- POWER ------------ Light Nuclear Core > --- PROPULSION ------- Armored Treads Armored Treads > --- UTILITY ---------- Advanced Heat Sink High-capacity Storage Unit Armor Integrity Analyzer Armor Integrity Analyzer Hardened Light Armor Plating Hardened Medium Armor Plating > --- WEAPON ----------- Gauss Rifle Gauss Rifle > --- INVENTORY -------- Improved Carbon-fiber Leg Improved Carbon-fiber Leg Improved Carbon-fiber Leg Improved Carbon-fiber Leg Cesium-ion Thruster Improved VTOL Module Improved VTOL Module Improved VTOL Module Improved VTOL Module Improved VTOL Module Advanced Weight Redist. System Melee Analysis Suite Melee Analysis Suite Melee Analysis Suite Beamcaster YOLO Cannon Gauss Rifle Assault Cannon Grenade Launcher [Rating: 44] Favorites ----------- Power Ion Engine Engine Ion Engine Power Core Light Nuclear Core Propulsion Light Treads Treads Light Treads Leg Carbon-fiber Leg Hover Unit Aerolev Unit Flight Unit Improved VTOL Module Utility High-capacity Storage Unit Device Improved Heat Sink Storage High-capacity Storage Unit Processor Visual Processing Unit Protection Hardened Light Armor Plating Weapon Light Cannon Energy Gun Beamcaster Ballistic Gun Gauss Rifle Ballistic Cannon Light Cannon Launcher Grenade Launcher Slashing Weapon Axe Build | -11 -10 -10 -10 -9 -8 -8 ------- Run | Yrd Mat Min Exi Min Mat Gar Slots Evolved 4 | . . . . . 4 . Power . | . . . . . . . Propulsion . | . . . . . . . Utility 4 | . . . . . 4 . Weapon . | . . . . . . . Parts Attached 79 | 1 9 6 4 . 56 3 Power 6 | . . . . . 6 . Engine 2 | . . . . . 2 . Core 4 | . . . . . 4 . Reactor . | . . . . . . . Propulsion 16 | . 4 . 2 . 9 1 Treads 6 | . 4 . . . 2 . Leg 7 | . . . 2 . 4 1 Wheel . | . . . . . . . Hover 2 | . . . . . 2 . Flight 1 | . . . . . 1 . Utility 25 | 1 2 2 . . 19 1 Device 10 | 1 . 2 . . 6 1 Storage 2 | . 1 . . . 1 . Processor 5 | . . . . . 5 . Hackware . | . . . . . . . Protection 8 | . 1 . . . 7 . Artifact . | . . . . . . . Weapon 32 | . 3 4 2 . 22 1 Energy Gun 3 | . . . 1 . 2 . Energy Cannon . | . . . . . . . Ballistic Gun 10 | . 1 . . . 9 . Ballistic Cannon 12 | . 2 3 1 . 6 . Launcher 6 | . . 1 . . 5 . Special Weapon . | . . . . . . . Impact Weapon . | . . . . . . . Slashing Weapon 1 | . . . . . . 1 Piercing Weapon . | . . . . . . . Special Melee Weapon . | . . . . . . . Unidentified Prototypes 2 | . . . . . 2 . Parts Lost 18 | . 1 1 . . 8 8 Power 1 | . . . . . . 1 Propulsion 3 | . . . . . 1 2 Utility 10 | . 1 1 . . 4 4 Weapon 4 | . . . . . 3 1 Highest Loss Streak 6 | . 1 1 . . 4 6 To Critical Strikes . | . . . . . . . Average Slot Usage (%) 94 | . 96 99 99 100 93 86 Engine 8 | . 14 14 14 14 4 7 Core 2 | . . . . . 4 . Treads 13 | . 27 28 3 . 7 . Leg 8 | . . . 24 28 10 15 Device 12 | . . 9 14 14 15 20 Storage 10 | . 14 14 14 14 9 9 Processor 6 | . . . . . 10 9 Protection 10 | . 9 3 . . 13 7 Energy Gun 3 | . . . 3 14 4 . Ballistic Gun 4 | . 5 . . . 6 . Ballistic Cannon 12 | . 22 28 24 14 5 15 Peak Build Rating 44 | 7 7 10 21 21 44 39 Average Rating 25 | 6 6 8 16 21 36 35 On Entrance 15 | 6 7 7 10 21 21 38 Naked Turns . | . . . . . . . Heaviest Build 76 | 14 24 24 24 24 76 65 Greatest Support 40 | 20 40 40 40 30 40 36 Greatest Overweight (x) 8 | . . . . . 8 3 Average Overweight (x) . | . . . . . 1 1 Largest Inventory Capacity 20 | 8 10 10 10 10 20 20 Average Capacity 15 | 8 8 10 10 10 19 20 Most Carried 20 | 7 8 10 10 10 20 20 Average Carried 13 | 6 7 8 9 10 17 19 Final Capacity 20 | 8 10 10 10 10 20 20 Final Carried 20 | 7 8 10 10 10 20 19 Class Distribution -------------------- 50% | Mutant 26% | Scavenger-Skirmisher 23% | Scavenger-Mutant Dominant Class ---------------- Mutant | -10/Materials Mutant | -10/Mines Mutant | -10/Exiles Scavenger-Mutant | -9/Mines Scavenger-Skirmisher | -8/Materials Mutant | -8/Garrison Resources | -11 -10 -10 -10 -9 -8 -8 ----------- Run | Yrd Mat Min Exi Min Mat Gar Matter Collected 2466 | 203 374 440 . 4 1364 81 Remotely . | . . . . . . . Salvage Created 2655 | 83 641 313 . . 1429 189 Parts 161 | 6 39 18 . . 85 13 Haulers Intercepted 4 | . 2 . . . 2 . Recyclers Shooed 1 | . . . . . 1 . Parts Field Recycled . | . . . . . . . Retrieved Matter . | . . . . . . . Parts Self-Destructed . | . . . . . . . Prevented . | . . . . . . . Kills | -11 -10 -10 -10 -9 -8 -8 ------- Run | Yrd Mat Min Exi Min Mat Gar Combat Hostiles Destroyed 63 | . 13 13 . . 29 8 Melee 5 | . . . . . . 5 Guns 17 | . 5 . . . 12 . Cannons 35 | . 8 11 . . 13 3 AOE 6 | . . 2 . . 4 . Classes Destroyed 11 | 2 5 . . . 4 . Worker 8 | . 4 1 . . 3 . Builder 1 | . . . . . 1 . Tunneler 2 | 1 . . . . 1 . Hauler 4 | . 2 . . . 2 . Recycler 3 | 1 1 . . . 1 . Watcher 7 | . 3 . . . 4 . Swarmer 14 | . 3 4 . . 4 3 Grunt 36 | . 10 9 . . 13 4 Duelist 3 | . . . . . 2 1 Sentry 6 | . . . . . 6 . Hunter 4 | . . . . . 4 . Best Kill Streak 5 | 2 4 4 . . 5 5 Combat Bots Only 5 | . 2 3 . . 4 5 Max Kills in Single Turn 3 | 1 2 2 . . 3 1 Gunslinging . | . . . . . . . Exploded 3 | . . 2 . . 3 . Melee 1 | . . . . . . 1 Uniques/NPCs Destroyed . | . . . . . . . Combat | -11 -10 -10 -10 -9 -8 -8 -------- Run | Yrd Mat Min Exi Min Mat Gar Hostile Shots Fired 436 | . 58 61 . 3 175 139 Missed 110 | . 14 13 . 1 51 31 Damage Taken 4769 | . 507 557 . 28 2373 1304 Core 772 | . 144 78 . . 167 383 Absorbed by Shields 25 | . . . . . . 25 Redirected to Shielding 9 | . . . . . 9 . Regen/Repaired (Parts) 381 | . 69 . . . 312 . Core Remaining (%) 55 | 100 . . . 11 . . Volleys Fired 245 | 5 57 37 . 1 119 26 Largest 2 | 2 2 2 . 2 2 2 Hottest 138 | 40 70 70 . 110 138 88 Shots Fired 481 | 10 114 74 . 2 232 49 Gun 219 | 10 56 . . 1 152 . Cannon 249 | . 58 73 . 1 68 49 Launcher 13 | . . 1 . . 12 . Special . | . . . . . . . Kinetic 415 | 10 114 73 . 1 168 49 Thermal 53 | . . . . 1 52 . Explosive 13 | . . 1 . . 12 . Electromagnetic . | . . . . . . . Robot Hit Streak 15 | 5 15 9 . 1 11 5 Robot Miss Streak 8 | 1 6 8 . 2 3 4 Penetration Max 1 | . . . . . 1 . Secondary Targets 1 | . 1 . . . . . Max Gunslinging Chain 1 | . 1 . . . . . Shots Hit Robots 272 | 6 65 36 . 1 129 35 Core Hits 130 | 3 28 19 . 1 68 11 Critical Kills 1 | . . . . . 1 . Critical Parts Destroyed 1 | . . . . . 1 . Critical Strikes 13 | . 1 4 . . 6 2 Burn 3 | . . . . . 3 . Destroy 2 | . . . . . 2 . Blast 7 | . 1 4 . . 1 1 Sever 1 | . . . . . . 1 Melee Attacks 14 | . . . . . . 14 Impact . | . . . . . . . Slashing 14 | . . . . . . 14 Piercing . | . . . . . . . Sneak Attacks . | . . . . . . . Combat Hostiles . | . . . . . . . Follow-up Attacks . | . . . . . . . Damage Inflicted 6256 | 64 1051 827 . 18 3309 987 Guns 2124 | 64 416 . . . 1644 . Cannons 3083 | . 627 708 . 18 1124 606 Explosions 660 | . . 119 . . 541 . Melee 369 | . . . . . . 369 Ramming 20 | . 8 . . . . 12 Kinetic 4547 | 64 1043 708 . 18 2108 606 Thermal 791 | . . . . . 791 . Explosive 529 | . . 119 . . 410 . Electromagnetic . | . . . . . . . Impact . | . . . . . . . Slashing 369 | . . . . . . 369 Piercing . | . . . . . . . Highest Corruption 1 | . . . . . 1 1 Average Corruption 1 | . . . . . 1 1 Corruption Purged . | . . . . . . . Corruption Blocked . | . . . . . . . Effects 15 | . . . . . 13 2 Matter Fused 5 | . . . . . 4 1 Heat Flow Errors 1 | . . . . . 1 . Energy Discharges 3 | . . . . . 3 . Parts Fused 1 | . . . . . 1 . Data Loss (minor) 1 | . . . . . 1 . Data Loss (major) 1 | . . . . . 1 . Misfires 1 | . . . . . . 1 Alerts 2 | . . . . . 2 . Overload Shots . | . . . . . . . Overflow Damage 118 | . 7 13 . . 64 34 Projectiles 34 | . 7 . . . 14 13 Explosions 63 | . . 13 . . 50 . Melee 21 | . . . . . . 21 Knockbacks 28 | . 8 3 . . 7 10 Impact . | . . . . . . . Kinetic 26 | . 7 2 . . 7 10 Secondary 2 | . 1 1 . . . . Self-Inflicted Damage 524 | . . 7 . . 517 . Shots 10 | . . 1 . . 9 . Rammed 1 | . 1 . . . . . Targets Rammed 3 | . 1 . . . . 2 Kicked 2 | . . . . . . 2 Crushed . | . . . . . . . Highest Temperature 402 | . 108 285 . 6 402 35 Average Temperature 83 | . 39 96 . 4 109 17 Received Heat Transfer 1513 | . 213 261 . . 603 436 Effects 4 | . . . . . 4 . Shutdowns 1 | . . . . . 1 . Energy Bleed 1 | . . . . . 1 . Short Circuit 2 | . . . . . 2 . Siege Activations . | . . . . . . . Robots Corrupted . | . . . . . . . Combat Hostiles . | . . . . . . . Parts Fried . | . . . . . . . Impact Corruptions . | . . . . . . . Robots Melted . | . . . . . . . Combat Hostiles . | . . . . . . . Parts Melted 3 | . . . . . 3 . Heat Transferred 1556 | . . . . . 1556 . Parts Sabotaged . | . . . . . . . Parts Stolen . | . . . . . . . Parts Stripped . | . . . . . . . Power Chain Reactions . | . . . . . . . Alert | -11 -10 -10 -10 -9 -8 -8 ------- Run | Yrd Mat Min Exi Min Mat Gar Peak Influence 808 | 10 319 243 . 58 808 685 Initial 525 | . 6 21 . . . 525 Average 254 | 6 150 122 . 28 303 562 Maximum Alert Level 3 | . 1 1 . . 3 2 Low Security (%) 53 | 100 64 93 . 100 41 . Level 1 24 | . 35 6 . . 28 . Level 2 18 | . . . . . 23 100 Level 3 3 | . . . . . 6 . Level 4 . | . . . . . . . Level 5 . | . . . . . . . High Security . | . . . . . . . Max Security . | . . . . . . . Squads Dispatched 10 | . 3 . . . 7 . Investigation 6 | . 2 . . . 4 . Extermination . | . . . . . . . Reinforcement 3 | . 1 . . . 2 . Assault 1 | . . . . . 1 . Garrison . | . . . . . . . Intercept . | . . . . . . . Searches Triggered . | . . . . . . . Construction Impeded . | . . . . . . . Haulers Reinforced . | . . . . . . . Active Scanning Responses . | . . . . . . . Cargo Convoy Interrupts . | . . . . . . . Stealth | -11 -10 -10 -10 -9 -8 -8 --------- Run | Yrd Mat Min Exi Min Mat Gar Distress Signals 2 | . 1 . . . 1 . Communications Jammed . | . . . . . . . Distress Signals . | . . . . . . . Times Spotted 105 | . 24 15 . 8 45 13 Peak Tracking Total 15 | . 4 3 . 15 4 9 Tactical Retreats 9 | . 1 1 . 2 1 4 Traps | -11 -10 -10 -10 -9 -8 -8 ------- Run | Yrd Mat Min Exi Min Mat Gar Traps Triggered 1 | . 1 . . . . . Indirectly . | . . . . . . . Trap Hack Attempts . | . . . . . . . Triggered . | . . . . . . . Disarmed . | . . . . . . . Reprogrammed . | . . . . . . . Reused 1 | . . . . . 1 . Traps Extracted . | . . . . . . . Installed 4 | . . . . . 4 . Triggered 1 | . . . . . 1 . Most Traps Carried 4 | . . 4 4 4 4 . Machines | -11 -10 -10 -10 -9 -8 -8 ---------- Run | Yrd Mat Min Exi Min Mat Gar Machines Disabled 16 | . 4 . . . 12 . Max in Single Turn 5 | . 1 . . . 5 . Machines Repaired . | . . . . . . . Machines Dismantled . | . . . . . . . Machines Sabotaged . | . . . . . . . Overloaded Fab Kills . | . . . . . . . Hacking | -11 -10 -10 -10 -9 -8 -8 --------- Run | Yrd Mat Min Exi Min Mat Gar Machines Accessed 25 | . 10 . 2 . 13 . Terminals 15 | . 7 . . . 8 . Fabricators . | . . . . . . . Repair Stations 3 | . 1 . . . 2 . Recycling Units 3 | . 2 . . . 1 . Scanalyzers 1 | . . . . . 1 . Garrison Access 1 | . . . . . 1 . Total Hacks 81 | . 36 . 5 . 40 . Successful 50 | . 20 . 5 . 25 . Failed 30 | . 15 . . . 15 . Catastrophic 1 | . . . . . 1 . Database Lockouts 1 | . 1 . . . . . Manual 59 | . 30 . 1 . 28 . Terminals 56 | . 30 . . . 26 . Fabricators . | . . . . . . . Repair Stations 9 | . 2 . . . 7 . Recycling Units 6 | . 4 . . . 2 . Scanalyzers 4 | . . . . . 4 . Garrison Access 1 | . . . . . 1 . Terminal Hacks 11 | . 5 . 5 . 1 . Record 4 | . . . 4 . . . Robot Analysis 2 | . 1 . . . 1 . Prototype ID Bank 1 | . 1 . . . . . Alert Level 1 | . 1 . . . . . Unreport Threat 2 | . 2 . . . . . Derelict Proto ID Bank 1 | . . . 1 . . . Fabricator Hacks . | . . . . . . . Repair Station Hacks 7 | . 2 . . . 5 . Scan Component 4 | . 1 . . . 3 . Repair 3 | . 1 . . . 2 . Recycling Unit Hacks 2 | . 1 . . . 1 . Report Inventory 1 | . 1 . . . . . Retrieve Components 1 | . . . . . 1 . Scanalyzer 3 | . . . . . 3 . Insert Component 1 | . . . . . 1 . Analyze 2 | . . . . . 2 . Garrison Access Hacks 1 | . . . . . 1 . Unlock Access 1 | . . . . . 1 . Unauthorized Hacks 26 | . 12 . . . 14 . Terminals 24 | . 11 . . . 13 . Track 1 | . . . . . 1 . Assimilate 7 | . 2 . . . 5 . Botnet 13 | . 7 . . . 6 . Skim 3 | . 2 . . . 1 . Fabricators . | . . . . . . . Repair Stations . | . . . . . . . Recycling Units 2 | . 1 . . . 1 . Tunnel 2 | . 1 . . . 1 . Scanalyzers . | . . . . . . . Garrison Access . | . . . . . . . Data Cores Recovered . | . . . . . . . Used . | . . . . . . . Hacking Detections 20 | . 10 . . . 10 . Full Trace Events 4 | . 1 . . . 3 . Feedback Events 1 | . . . . . 1 . Corruption 1 | . . . . . 1 . Feedback Blocked . | . . . . . . . Robot Schematics Acquired . | . . . . . . . Robots Built . | . . . . . . . Authchips . | . . . . . . . Time . | . . . . . . . Total Robot Build Rating . | . . . . . . . Part Schematics Acquired 1 | . . . . . 1 . Parts Built . | . . . . . . . Authchips . | . . . . . . . Time . | . . . . . . . Total Part Build Rating . | . . . . . . . Parts Repaired 3 | . 1 . . . 2 . Time 96 | . 26 . . . 70 . Parts Recycled . | . . . . . . . Recycled Matter . | . . . . . . . Retrieved Matter . | . . . . . . . Retrieved Components 3 | . . . . . 3 . Parts Scanalyzed 1 | . . . . . 1 . Part Schematics Acquired 1 | . . . . . 1 . Parts Damaged . | . . . . . . . Bothacking | -11 -10 -10 -10 -9 -8 -8 ------------ Run | Yrd Mat Min Exi Min Mat Gar Used RIF Installer . | . . . . . . . Robots Hacked . | . . . . . . . Non-combat . | . . . . . . . Combat . | . . . . . . . Robot Hacks Applied . | . . . . . . . Relay Couplers Released . | . . . . . . . Fabnet Peak Effective % . | . . . . . . . Robots Rewired . | . . . . . . . Allies Hacked . | . . . . . . . Hacks Repelled . | . . . . . . . Allies | -11 -10 -10 -10 -9 -8 -8 -------- Run | Yrd Mat Min Exi Min Mat Gar Total Allies 4 | . . 3 . . 1 . Largest Group 3 | . . 3 3 3 1 1 Highest-Rated Group 40 | . . 40 40 40 10 10 Highest-Rated Ally 16 | . . 16 16 16 10 10 Total Orders 1 | . . . . . . 1 STAY 1 | . . . . . . 1 Ally Attacks 30 | . . 6 . 24 . . Total Damage 361 | . . 73 . 288 . . Kills 5 | . . 1 . 4 . . Allies Corrupted . | . . . . . . . Allies Melted . | . . . . . . . Intel | -11 -10 -10 -10 -9 -8 -8 ------- Run | Yrd Mat Min Exi Min Mat Gar Robot Analysis Total 2 | . 1 . . . 1 . Derelict Logs Recovered 2 | . . 1 . 1 . . Drone Launches . | . . . . . . . Drone Recoveries . | . . . . . . . Exploration | -11 -10 -10 -10 -9 -8 -8 ------------- Run | Yrd Mat Min Exi Min Mat Gar Turns Passed 7372 | 27 1125 1146 425 111 4232 306 Spaces Moved 3193 | 9 518 633 336 87 1531 79 Core . | . . . . . . . Treads 1725 | . 518 633 30 . 544 . Legs 1467 | 9 . . 306 87 986 79 Wheels . | . . . . . . . Hover 1 | . . . . . 1 . Flight . | . . . . . . . Fastest Speed 120 | 120 160 160 120 120 120 190 Average Speed 185 | 120 160 160 123 120 221 193 Slowest Speed 540 | 120 160 160 160 120 540 330 Overloaded Moves . | . . . . . . . Propulsion Burnouts . | . . . . . . . Robots Hopped . | . . . . . . . Cave-ins Triggered . | . . . . . . . Exploration Rate (%) 53 | 2 94 98 70 20 82 10 Regions Visited 6 Branch Regions 3 Pre-discovered Areas 5 | . 1 1 1 1 1 . Known Exits Taken 1 | . . . . . 1 . Unknown Exits Taken 5 | 1 1 1 1 1 . . Scrap Searched 1 | . . 1 . . . . Spaces Dug 85 | . . . . . 85 . Terrain Destroyed 209 | . . 7 . . 202 . Melee . | . . . . . . . Projectile 13 | . . . . . 13 . AOE 196 | . . 7 . . 189 . Terrain Rammed . | . . . . . . . Walls Destroyed . | . . . . . . . Machines Disabled . | . . . . . . . Actions | -11 -10 -10 -10 -9 -8 -8 --------- Run | Yrd Mat Min Exi Min Mat Gar Total 4157 | 15 702 694 348 91 2150 157 Wait 501 | . 104 5 . 4 355 33 Move 3187 | 8 517 632 335 86 1530 79 Hop . | . . . . . . . Pick Up 56 | 1 4 8 4 . 39 . Fast Attach 31 | 1 4 . . . 25 1 Attach 17 | . 2 3 3 . 8 1 Detach 5 | . 2 . . . 3 . Swap 31 | . 3 3 1 . 23 1 Drop 63 | . 8 6 5 . 44 . Fire 245 | 5 57 37 . 1 119 26 Melee 14 | . . . . . . 14 Ram . | . . . . . . . Kick 2 | . . . . . . 2 Crush 1 | . 1 . . . . . Escape Stasis . | . . . . . . . Rewire . | . . . . . . . Trap 4 | . . . . . 4 . Miscellaneous . | . . . . . . . Route ------- -11/Scrapyard -10/Materials (discovered 4 exits: [*Mat x3] / [*Min]) -10/Mines (discovered 3 exits: [*Mat x2] / *Exi) -10/Exiles -9/Mines -8/Materials (discovered 3 exits: [*Fac x2] / Gar) -8/Garrison History --------- Turn | Location | Event 16 | -11/Scrapyard | Discovered new exit (range 3) 28 | -11/Scrapyard | Entered Materials 173 | -10/Materials | Core integrity fell below 50% 315 | -10/Materials | Build established: Mutant 343 | -10/Materials | Discovered new exit (range 16) 594 | -10/Materials | Discovered new exit (range 5) 758 | -10/Materials | Repaired Assault Rifle 768 | -10/Materials | Discovered new exit (range 12) 840 | -10/Materials | Central database locked down 1060 | -10/Materials | Discovered new exit (range 10) 1153 | -10/Materials | Entered Mines 1180 | -10/Mines | Met a Derelict bent on vengeance 1335 | -10/Mines | Discovered new exit (range 5) 1473 | -10/Mines | Core integrity fell below 20% 1561 | -10/Mines | Discovered new exit (range 8) 1840 | -10/Mines | Assisted by bots powering up and referring to "LRC-V3" 2008 | -10/Mines | Found a hidden stash of uninstalled traps 2286 | -10/Mines | Deemed a non-threat by the Exiles lab entrance 2286 | -10/Mines | Discovered new exit (range 5) 2299 | -10/Mines | Entered Exiles 2299 | -10/Exiles | Accompanied by 3 allies 2347 | -10/Exiles | Met 8R-AWN 2396 | -10/Exiles | Met EX-HEX 2455 | -10/Exiles | Met EX-DEC 2527 | -10/Exiles | Learned location of Zion (-7) 2548 | -10/Exiles | Met EX-BIN 2565 | -10/Exiles | Aligned with FarCom system 2566 | -10/Exiles | Given EX-Vault access code 2594 | -10/Exiles | Opened EX-Vault 2604 | -10/Exiles | Found YOLO Cannon 2627 | -10/Exiles | Warned to stay clear of 0b10 Research branches 2647 | -10/Exiles | Exiles lab attacked by MAIN.C 2711 | -10/Exiles | Discovered new exit (range 10) 2724 | -10/Exiles | Left Exiles lab with YOLO Cannon 2724 | -10/Exiles | Entered Mines 2724 | -9/Mines | Accompanied by 3 allies 2750 | -9/Mines | Learned location of Recycling (-7) 2758 | -9/Mines | Assembled infested the area 2812 | -9/Mines | Lost 3 allies 2823 | -9/Mines | Discovered new exit (range 5) 2835 | -9/Mines | Entered Materials 2835 | -8/Materials | Evolved 4 slots: Utility x4 2951 | -8/Materials | Build established: Scavenger-Mutant 3294 | -8/Materials | Build established: Scavenger-Skirmisher 4098 | -8/Materials | Discovered new exit (range 11) 4828 | -8/Materials | Repaired Hrd. Light Armor Plating 5178 | -8/Materials | Discovered new exit (range 18) 5392 | -8/Materials | Build established: Scavenger-Mutant 5917 | -8/Materials | Lost 4 parts (2u2w) 6035 | -8/Materials | First assault squad dispatched 6165 | -8/Materials | Build established: Mutant 6496 | -8/Materials | Repaired Assault Cannon 7042 | -8/Materials | Build established: Scavenger-Mutant 7065 | -8/Materials | Identified exit to Garrison 7067 | -8/Materials | Entered Garrison 7067 | -8/Garrison | Accompanied by 1 ally 7169 | -8/Garrison | Triggered checkpoint 7294 | -8/Garrison | Core integrity fell below 50% 7345 | -8/Garrison | Core integrity fell below 20% 7373 | -8/Garrison | Destroyed by Y-45 Defender with Beam Rifle Last Messages --------------- 07297_ Kicked S-10 Pest out of the way. 07299_ S-10 Pest destroyed. 07302_ Critical hit (Burn: +37). 07302_ Acquired 8 matter. 07307_ Acquired 7 matter. 07308_ Imp. Carbon-fiber Leg destroyed. 07315_ Adv. Heat Sink destroyed. 07319_ G-47 Trooper Aluminum Leg severed. 07321_ G-47 Trooper destroyed. 07324_ Destroyed Flight Unit. 07337_ Assault Cannon destroyed. 07339_ Imp. Ion Engine destroyed. 07339_ G-47 Trooper destroyed. 07349_ S-10 Pest destroyed. 07354_ Destroyed Lgt. Ion Engine. 07354_ S-10 Pest destroyed. 07359_ Disposable Heat Sink destroyed. 07368_ Destroyed Melee Analysis Suite. 07368_ L-31 Rogue destroyed. 07373_ Critical hit (Burn: +37). Map ----- +----------------------------------------------------+ | | | | | | | | | ?????????????????????????????????????????????????? | | ?????????????????????????????????????????????????? | | ?????????????????????????????????????????????????? | | ?????????????????????????????????????????????????? | | ?????????????????????????????????????????????????? | | ?????????????????????????????????????????????????? | | ?????????????????????????????????????????????????? | | ?????????????????????????????????????????????????? | | ?????????????????????????????????????????????????? | | ????????????????????????#????????????????????????? | | ???????????????????????? #???????????????????????? | | ???????????????????????? #??????????????????????? | | ???????????????????????? ??????????????????????? | | ???????????????????????? ??????????????????????? | | ???????????????????????? #??????????????????????? | | ????????????????????????# #??????????????????????? | | ?????????????????????#### #??????????????????????? | | ????????????????????? ## ##?????????????????????? | | ?????????????????????#%#!=!#?????????????????????? | | ?????????????????????# #!=!#?????????????????????? | | ???????????????????### #![!#?######??????????????? | | ????????????C#######=!%##@#??# ####### Y#????? | | ?????????????+ %+=%==Y%#??# + T#????? | | ?????????????### ###*=[####??# #### ###???????? | | ???????????????????###%#?????# ###??????????????? | | ?????????????????????#=#?????# #????????????????? | | ?????????????????????# #?????# #????????????????? | | ?????????????????????# #?????# #????????????????? | | ?????????????????????# #?????# #????????????????? | | ?????????????????????# #?????# #????????????????? | | ?????????????????????# #?????# #????????????????? | | ?????????????????????# #?????# #????????????????? | | ?????????????????????# #?????# #????????????????? | | ???????????#####+#####!####### #????????????????? | | ?????????# % g +????????????????? | | ?????????# #????????????????? | | ?????????# ####+#### #######+##????????????????? | | ????????????????????# #?????????????????????????? | | ????????????????????# #?????????????????????????? | | ????????????????????# #?????????????????????????? | | ????????????????????# #?????????????????????????? | | ????????????????????# #?????????????????????????? | | ????????????????????#% ??????????????????????????? | | ????????????????????# ??????????????????????????? | | ???????????????????? ??????????????????????????? | | ???????????????????? % ??????????????????????????? | +----------------------------------------------------+ Best States ------------- Heat Dissipation 64 Coolant Potential 100 Energy Generation 14 Energy Capacity 275 Matter Stores 300 Matter Capacity 300 Sight Range 20 Robot Scan Range 15 Terrain Scan Density 10 Armor Coverage 525 Utility Shielding 66 Evasion (%) 55 Melee Accuracy 5 Armor Integrity Analysis 30 Recoil Reduction 2 Item Schematics ----------------- Imp. VTOL Module | -8/Materials | Scanalyzed Robot Schematics ------------------ None Fabricated ------------ Nothing Alien Tech Used ----------------- None Achievements -------------- None Challenges ------------ None Game ------ Seed ImprinterRecoilRecalibrator Manual? 0 Play Time 00:49:58 Cumulative 108.2 hours Start 2024.11.18 @ 12:17:27 End 2024.11.18 @ 13:04:58 Sessions 1 Manual Loads 0 Difficulty Rogue Special Mode None Game No. 195 Rogue 195 Adventurer 0 Explorer 0 Win Type - Total 0 Types 0/0/0/0/0/0/0/0/0 Lore% 42 Gallery% 40 Achievement% 35 Wizard Run 0 Options --------- Layout 0 ASCII 0 Keyboard 0 Movement Mouse Keybinds 0 Fullscreen 1 Font 24/Cog Map View 91x25 Zoom Use 82% Tactical HUD 1 Map Filters NONE Filters NONE Steam 1 RUN: 564d0c66-7bb6-4fc3-9628-4ef3953f3d78